[Event "Titled Tuesday Blitz December 27 Early 2022"]
[White "Mischuk, Dmitry"]
[Black "Srebrnic, Marko"]
[WhiteFideId "14118734"]
[BlackFideId "14603616"]
[WhiteElo "2298"]
[BlackElo "2366"]
[Result "0-1"]
[Round "04"]
[TimeControl "180+2"]
[Date "2022.12.27"]
[WhiteClock "0:00:52"]
[BlackClock "0:01:25"]

1. d4 {[%clk 0:03:00]}  Nf6 {[%clk 0:02:59]} 2. c4 {[%clk 0:03:00]}  g6 {[%clk 0:02:59]} 3. Nc3 {[%clk 0:03:00]}  d6 {[%clk 0:03:00]} 4. e4 {[%clk 0:03:00]}  Bg7 {[%clk 0:03:00]} 5. h3 {[%clk 0:03:01]}  c5 {[%clk 0:02:57]} 6. d5 {[%clk 0:03:00]}  a6 {[%clk 0:02:50]} 7. a4 {[%clk 0:02:56]}  Nfd7 {[%clk 0:02:49]} 8. Be2 {[%clk 0:02:53]}  Bxc3+ {[%clk 0:02:48]} 9. bxc3 {[%clk 0:02:53]}  Qa5 {[%clk 0:02:49]} 10. Bd2 {[%clk 0:02:53]}  h6 {[%clk 0:02:45]} 11. h4 {[%clk 0:02:52]}  Nf6 {[%clk 0:02:43]} 12. Qb1 {[%clk 0:02:49]}  Nbd7 {[%clk 0:02:43]} 13. h5 {[%clk 0:02:47]}  g5 {[%clk 0:02:42]} 14. Qb3 {[%clk 0:02:38]}  Ne5 {[%clk 0:02:38]} 15. f3 {[%clk 0:02:35]}  Bd7 {[%clk 0:02:35]} 16. g3 {[%clk 0:02:34]}  b5 {[%clk 0:02:30]} 17. cxb5 {[%clk 0:02:31]}  axb5 {[%clk 0:02:30]} 18. f4 {[%clk 0:02:26]}  gxf4 {[%clk 0:02:30]} 19. gxf4 {[%clk 0:02:26]}  Nc4 {[%clk 0:02:22]} 20. Bxc4 {[%clk 0:02:10]}  bxc4 {[%clk 0:02:23]} 21. Qxc4 {[%clk 0:02:11]}  Bb5 {[%clk 0:02:17]} 22. Qb3 {[%clk 0:02:00]}  Nxe4 {[%clk 0:02:17]} 23. Nf3 {[%clk 0:02:01]}  Rg8 {[%clk 0:02:11]} 24. Qc2 {[%clk 0:01:31]}  Nxd2 {[%clk 0:02:04]} 25. Nxd2 {[%clk 0:01:32]}  Bxa4 {[%clk 0:01:51]} 26. Qh7 {[%clk 0:01:32]}  Rg2 {[%clk 0:01:49]} 27. Ra3 {[%clk 0:01:24]}  Qb5 {[%clk 0:01:32]} 28. Qe4 {[%clk 0:00:54]}  Rxd2 {[%clk 0:01:28]} 29. Rxa4 {[%clk 0:00:52]}  Rxa4 {[%clk 0:01:25]} 0-1


[Site "https://www.chess.com"]

[Event "Titled Tuesday Blitz December 27 Early 2022"]
[White "Mitrovic, Darko R"]
[Black "Berezin, Viktor"]
[WhiteFideId "927023"]
[BlackFideId "14107872"]
[WhiteElo "2220"]
[BlackElo "2307"]
[Result "0-1"]
[Round "04"]
[TimeControl "180+2"]
[Date "2022.12.27"]
[WhiteClock "0:00:08"]
[BlackClock "0:00:17"]

1. d4 {[%clk 0:03:00]}  Nf6 {[%clk 0:02:59]} 2. Nf3 {[%clk 0:03:00]}  g6 {[%clk 0:02:59]} 3. g3 {[%clk 0:03:00]}  Bg7 {[%clk 0:02:59]} 4. Bg2 {[%clk 0:03:01]}  O-O {[%clk 0:03:00]} 5. O-O {[%clk 0:03:02]}  d6 {[%clk 0:03:01]} 6. c4 {[%clk 0:03:02]}  Nc6 {[%clk 0:03:00]} 7. Nc3 {[%clk 0:03:03]}  a6 {[%clk 0:03:00]} 8. e4 {[%clk 0:03:01]}  Bg4 {[%clk 0:02:54]} 9. h3 {[%clk 0:02:55]}  Bxf3 {[%clk 0:02:54]} 10. Bxf3 {[%clk 0:02:54]}  e5 {[%clk 0:02:55]} 11. d5 {[%clk 0:02:53]}  Nd4 {[%clk 0:02:54]} 12. Bg2 {[%clk 0:02:49]}  c5 {[%clk 0:02:55]} 13. dxc6 {[%clk 0:02:46]}  bxc6 {[%clk 0:02:53]} 14. Be3 {[%clk 0:02:43]}  Nd7 {[%clk 0:02:52]} 15. b3 {[%clk 0:02:32]}  a5 {[%clk 0:02:47]} 16. Na4 {[%clk 0:02:19]}  Rb8 {[%clk 0:02:34]} 17. c5 {[%clk 0:02:07]}  Nxc5 {[%clk 0:02:31]} 18. Nxc5 {[%clk 0:02:06]}  dxc5 {[%clk 0:02:31]} 19. Rc1 {[%clk 0:02:01]}  Qd6 {[%clk 0:02:27]} 20. Qd2 {[%clk 0:01:53]}  Rfd8 {[%clk 0:02:23]} 21. Kh2 {[%clk 0:01:47]}  Qe7 {[%clk 0:01:48]} 22. Qxa5 {[%clk 0:01:41]}  Bf8 {[%clk 0:01:31]} 23. Bxd4 {[%clk 0:01:21]}  Rxd4 {[%clk 0:01:23]} 24. Qc3 {[%clk 0:01:15]}  Rbd8 {[%clk 0:01:21]} 25. Bf3 {[%clk 0:01:08]}  Rd3 {[%clk 0:01:18]} 26. Qc4 {[%clk 0:00:54]}  Rxf3 {[%clk 0:01:16]} 27. Kg2 {[%clk 0:00:52]}  Rfd3 {[%clk 0:01:15]} 28. a4 {[%clk 0:00:52]}  R3d4 {[%clk 0:01:07]} 29. Qc2 {[%clk 0:00:51]}  c4 {[%clk 0:01:04]} 30. bxc4 {[%clk 0:00:50]}  Qc5 {[%clk 0:01:03]} 31. Rfe1 {[%clk 0:00:45]}  Rd2 {[%clk 0:01:01]} 32. Re2 {[%clk 0:00:42]}  Rxc2 {[%clk 0:01:01]} 33. Rcxc2 {[%clk 0:00:41]}  Ra8 {[%clk 0:00:59]} 34. Ra2 {[%clk 0:00:40]}  Qxc4 {[%clk 0:00:55]} 35. a5 {[%clk 0:00:40]}  Bb4 {[%clk 0:00:53]} 36. a6 {[%clk 0:00:39]}  Rxa6 {[%clk 0:00:52]} 37. Rxa6 {[%clk 0:00:39]}  Qxa6 {[%clk 0:00:53]} 38. Rc2 {[%clk 0:00:38]}  Qd3 {[%clk 0:00:51]} 39. Ra2 {[%clk 0:00:35]}  Qxe4+ {[%clk 0:00:50]} 40. Kh2 {[%clk 0:00:34]}  Qd5 {[%clk 0:00:48]} 41. Re2 {[%clk 0:00:31]}  f5 {[%clk 0:00:46]} 42. h4 {[%clk 0:00:31]}  e4 {[%clk 0:00:46]} 43. Kg2 {[%clk 0:00:27]}  e3+ {[%clk 0:00:46]} 44. f3 {[%clk 0:00:26]}  Bd2 {[%clk 0:00:43]} 45. h5 {[%clk 0:00:20]}  c5 {[%clk 0:00:43]} 46. hxg6 {[%clk 0:00:20]}  hxg6 {[%clk 0:00:44]} 47. Kh3 {[%clk 0:00:15]}  Qxf3 {[%clk 0:00:41]} 48. Rh2 {[%clk 0:00:12]}  Qh5+ {[%clk 0:00:34]} 49. Kg2 {[%clk 0:00:12]}  Qxh2+ {[%clk 0:00:33]} 50. Kxh2 {[%clk 0:00:12]}  e2 {[%clk 0:00:33]} 51. Kg2 {[%clk 0:00:12]}  e1=Q {[%clk 0:00:33]} 52. Kf3 {[%clk 0:00:13]}  Qe4+ {[%clk 0:00:30]} 53. Kf2 {[%clk 0:00:12]}  Be1+ {[%clk 0:00:30]} 54. Kf1 {[%clk 0:00:11]}  c4 {[%clk 0:00:28]} 55. g4 {[%clk 0:00:10]}  fxg4 {[%clk 0:00:27]} 56. Kg1 {[%clk 0:00:10]}  g3 {[%clk 0:00:23]} 57. Kf1 {[%clk 0:00:09]}  Qf3+ {[%clk 0:00:15]} 58. Kxe1 {[%clk 0:00:09]}  Qf2+ {[%clk 0:00:16]} 59. Kd1 {[%clk 0:00:09]}  g2 {[%clk 0:00:16]} 60. Kc1 {[%clk 0:00:08]}  g1=Q# {[%clk 0:00:17]} 0-1


[Site "https://www.chess.com"]

[Event "Titled Tuesday Blitz December 27 Early 2022"]
[White "Moroni, Luca Jr"]
[Black "Firouzja, Alireza"]
[WhiteFideId "865834"]
[BlackFideId "12573981"]
[WhiteElo "2535"]
[BlackElo "2785"]
[Result "1/2-1/2"]
[Round "04"]
[TimeControl "180+2"]
[Date "2022.12.27"]
[WhiteClock "0:00:20"]
[BlackClock "0:00:07"]

1. d4 {[%clk 0:03:00]}  Nf6 {[%clk 0:02:59]} 2. Nf3 {[%clk 0:02:58]}  g6 {[%clk 0:02:59]} 3. Bf4 {[%clk 0:02:54]}  Bg7 {[%clk 0:02:56]} 4. Nc3 {[%clk 0:02:54]}  d5 {[%clk 0:02:53]} 5. Nb5 {[%clk 0:02:54]}  Na6 {[%clk 0:02:52]} 6. h3 {[%clk 0:02:53]}  O-O {[%clk 0:02:51]} 7. e3 {[%clk 0:02:54]}  c6 {[%clk 0:02:42]} 8. Nc3 {[%clk 0:02:53]}  b6 {[%clk 0:02:37]} 9. Be2 {[%clk 0:02:46]}  Bb7 {[%clk 0:02:37]} 10. O-O {[%clk 0:02:45]}  Nb8 {[%clk 0:02:34]} 11. a4 {[%clk 0:02:44]}  a5 {[%clk 0:02:30]} 12. Rb1 {[%clk 0:02:39]}  Na6 {[%clk 0:02:29]} 13. Be5 {[%clk 0:02:37]}  Nb4 {[%clk 0:02:29]} 14. Re1 {[%clk 0:02:33]}  Bc8 {[%clk 0:02:28]} 15. Qd2 {[%clk 0:02:29]}  Bh6 {[%clk 0:02:27]} 16. Bd3 {[%clk 0:02:22]}  Nxd3 {[%clk 0:02:24]} 17. cxd3 {[%clk 0:02:23]}  Nh5 {[%clk 0:02:16]} 18. Bh2 {[%clk 0:02:19]}  f6 {[%clk 0:02:15]} 19. b4 {[%clk 0:02:17]}  e6 {[%clk 0:01:33]} 20. Rec1 {[%clk 0:02:14]}  axb4 {[%clk 0:01:33]} 21. Rxb4 {[%clk 0:02:14]}  Rf7 {[%clk 0:01:31]} 22. Qb2 {[%clk 0:02:12]}  Ra6 {[%clk 0:01:30]} 23. g4 {[%clk 0:01:29]}  Ng7 {[%clk 0:01:28]} 24. Ne2 {[%clk 0:01:16]}  Bd7 {[%clk 0:01:21]} 25. Rb1 {[%clk 0:01:15]}  b5 {[%clk 0:01:16]} 26. axb5 {[%clk 0:01:15]}  cxb5 {[%clk 0:01:17]} 27. Nc3 {[%clk 0:01:15]}  Ne8 {[%clk 0:00:56]} 28. Nxb5 {[%clk 0:01:15]}  Bf8 {[%clk 0:00:57]} 29. Rb3 {[%clk 0:01:15]}  h5 {[%clk 0:00:51]} 30. g5 {[%clk 0:01:14]}  e5 {[%clk 0:00:48]} 31. dxe5 {[%clk 0:01:11]}  fxg5 {[%clk 0:00:32]} 32. Nbd4 {[%clk 0:01:11]}  Bxh3 {[%clk 0:00:17]} 33. Rb8 {[%clk 0:00:58]}  Qd7 {[%clk 0:00:18]} 34. e6 {[%clk 0:00:58]}  Rxe6 {[%clk 0:00:17]} 35. Nxe6 {[%clk 0:00:44]}  Rxf3 {[%clk 0:00:16]} 36. Nxf8 {[%clk 0:00:35]}  Qg4+ {[%clk 0:00:09]} 37. Bg3 {[%clk 0:00:35]}  h4 {[%clk 0:00:04]} 38. Rxe8 {[%clk 0:00:25]}  Rxg3+ {[%clk 0:00:04]} 39. fxg3 {[%clk 0:00:22]}  Qxg3+ {[%clk 0:00:05]} 40. Kh1 {[%clk 0:00:22]}  Qf3+ {[%clk 0:00:06]} 41. Kh2 {[%clk 0:00:19]}  Qg3+ {[%clk 0:00:06]} 42. Kh1 {[%clk 0:00:19]}  Qf3+ {[%clk 0:00:07]} 43. Kh2 {[%clk 0:00:19]}  Qg3+ {[%clk 0:00:07]} 44. Kh1 {[%clk 0:00:20]} 1/2-1/2


[Site "https://www.chess.com"]

[Event "Titled Tuesday Blitz December 27 Early 2022"]
[White "Movahed, Sina"]
[Black "Xiong, Jeffery"]
[WhiteFideId "42520835"]
[BlackFideId "2047640"]
[WhiteElo "2340"]
[BlackElo "2692"]
[Result "1-0"]
[Round "04"]
[TimeControl "180+2"]
[Date "2022.12.27"]
[WhiteClock "0:00:42"]
[BlackClock "0:00:01"]

1. Nf3 {[%clk 0:03:00]}  c5 {[%clk 0:02:57]} 2. e4 {[%clk 0:03:00]}  d6 {[%clk 0:02:57]} 3. d4 {[%clk 0:03:00]}  cxd4 {[%clk 0:02:57]} 4. Nxd4 {[%clk 0:03:01]}  Nf6 {[%clk 0:02:58]} 5. Nc3 {[%clk 0:03:02]}  a6 {[%clk 0:02:59]} 6. Bg5 {[%clk 0:03:02]}  Nbd7 {[%clk 0:02:56]} 7. Bc4 {[%clk 0:03:01]}  Qb6 {[%clk 0:02:49]} 8. Bb3 {[%clk 0:03:01]}  e6 {[%clk 0:02:48]} 9. Qd2 {[%clk 0:03:01]}  Nc5 {[%clk 0:02:46]} 10. f3 {[%clk 0:03:00]}  Bd7 {[%clk 0:02:40]} 11. O-O-O {[%clk 0:03:00]}  h5 {[%clk 0:02:40]} 12. Kb1 {[%clk 0:02:59]}  Rc8 {[%clk 0:02:38]} 13. Rhe1 {[%clk 0:02:58]}  Be7 {[%clk 0:02:37]} 14. f4 {[%clk 0:02:51]}  Nxb3 {[%clk 0:02:29]} 15. axb3 {[%clk 0:02:52]}  Bc6 {[%clk 0:02:16]} 16. e5 {[%clk 0:02:28]}  dxe5 {[%clk 0:02:16]} 17. fxe5 {[%clk 0:02:26]}  Ng8 {[%clk 0:01:20]} 18. Rf1 {[%clk 0:01:57]}  Qc7 {[%clk 0:00:31]} 19. Qf4 {[%clk 0:01:44]}  Bxg5 {[%clk 0:00:18]} 20. Qxg5 {[%clk 0:01:44]}  Rh7 {[%clk 0:00:12]} 21. Qf4 {[%clk 0:00:59]}  Qe7 {[%clk 0:00:06]} 22. Nxc6 {[%clk 0:00:56]}  Rxc6 {[%clk 0:00:07]} 23. Ne4 {[%clk 0:00:57]}  f6 {[%clk 0:00:02]} 24. Nd6+ {[%clk 0:00:56]}  Kf8 {[%clk 0:00:02]} 25. Qe4 {[%clk 0:00:55]}  Rh6 {[%clk 0:00:02]} 26. h3 {[%clk 0:00:56]}  h4 {[%clk 0:00:01]} 27. Rf3 {[%clk 0:00:54]}  f5 {[%clk 0:00:01]} 28. Qd4 {[%clk 0:00:45]}  g5 {[%clk 0:00:01]} 29. Qa7 {[%clk 0:00:42]}  Rc7 {[%clk 0:00:01]} 30. Qb8+ {[%clk 0:00:42]} 1-0


[Site "https://www.chess.com"]

[Event "Titled Tuesday Blitz December 27 Early 2022"]
[White "Orozbaev, Eldiar"]
[Black "Flynn, Jacob"]
[WhiteFideId "13802240"]
[BlackFideId "2509393"]
[WhiteElo "2235"]
[BlackElo "2102"]
[Result "1-0"]
[Round "04"]
[TimeControl "180+2"]
[Date "2022.12.27"]
[WhiteClock "0:01:45"]
[BlackClock "0:00:59"]

1. e4 {[%clk 0:03:00]}  e5 {[%clk 0:03:00]} 2. Nf3 {[%clk 0:02:59]}  Nc6 {[%clk 0:03:00]} 3. d4 {[%clk 0:03:00]}  exd4 {[%clk 0:03:00]} 4. c3 {[%clk 0:03:00]}  Qe7 {[%clk 0:02:59]} 5. Bd3 {[%clk 0:02:55]}  d5 {[%clk 0:02:59]} 6. O-O {[%clk 0:02:53]}  dxe4 {[%clk 0:02:59]} 7. Bxe4 {[%clk 0:02:54]}  dxc3 {[%clk 0:02:43]} 8. Nxc3 {[%clk 0:02:49]}  Be6 {[%clk 0:02:42]} 9. Qa4 {[%clk 0:02:45]}  Bd7 {[%clk 0:02:34]} 10. Re1 {[%clk 0:02:43]}  O-O-O {[%clk 0:02:23]} 11. Bxc6 {[%clk 0:02:26]}  Bxc6 {[%clk 0:01:55]} 12. Qxa7 {[%clk 0:02:25]}  Qc5 {[%clk 0:01:49]} 13. Qa8+ {[%clk 0:02:16]}  Kd7 {[%clk 0:01:48]} 14. Ne5+ {[%clk 0:02:09]}  Qxe5 {[%clk 0:01:42]} 15. Qxd8+ {[%clk 0:02:08]}  Kxd8 {[%clk 0:01:43]} 16. Rxe5 {[%clk 0:02:08]}  Bd6 {[%clk 0:01:43]} 17. Re1 {[%clk 0:02:09]}  Ne7 {[%clk 0:01:39]} 18. Ne4 {[%clk 0:02:06]}  Bb4 {[%clk 0:01:35]} 19. Bd2 {[%clk 0:02:05]}  Bxd2 {[%clk 0:01:32]} 20. Nxd2 {[%clk 0:02:05]}  Nf5 {[%clk 0:01:32]} 21. Ne4 {[%clk 0:01:56]}  Kc8 {[%clk 0:01:20]} 22. Rad1 {[%clk 0:01:53]}  Re8 {[%clk 0:01:17]} 23. Ng3 {[%clk 0:01:51]}  Rxe1+ {[%clk 0:01:13]} 24. Rxe1 {[%clk 0:01:51]}  Nd6 {[%clk 0:01:13]} 25. Nh5 {[%clk 0:01:49]}  g6 {[%clk 0:01:04]} 26. Nf6 {[%clk 0:01:48]}  Nc4 {[%clk 0:01:04]} 27. b3 {[%clk 0:01:47]}  Nb6 {[%clk 0:01:00]} 28. Re7 {[%clk 0:01:46]}  Nd5 {[%clk 0:00:59]} 29. Rxf7 {[%clk 0:01:45]} 1-0


[Site "https://www.chess.com"]

[Event "Titled Tuesday Blitz December 27 Early 2022"]
[White "Orzech, Dominik"]
[Black "Estrada Nieto, Julian"]
[WhiteFideId "1115065"]
[BlackFideId "5101018"]
[WhiteElo "2308"]
[BlackElo "2215"]
[Result "1-0"]
[Round "04"]
[TimeControl "180+2"]
[Date "2022.12.27"]
[WhiteClock "0:01:27"]
[BlackClock "0:00:11"]

1. e4 {[%clk 0:02:55]}  e5 {[%clk 0:02:59]} 2. Nf3 {[%clk 0:02:55]}  Nc6 {[%clk 0:02:59]} 3. Bc4 {[%clk 0:02:54]}  Bc5 {[%clk 0:02:58]} 4. O-O {[%clk 0:02:53]}  Nf6 {[%clk 0:02:55]} 5. d4 {[%clk 0:02:53]}  Bxd4 {[%clk 0:02:53]} 6. Nxd4 {[%clk 0:02:52]}  Nxd4 {[%clk 0:02:54]} 7. f4 {[%clk 0:02:52]}  d6 {[%clk 0:02:54]} 8. Nc3 {[%clk 0:02:52]}  Be6 {[%clk 0:02:49]} 9. Bd3 {[%clk 0:02:46]}  c6 {[%clk 0:02:42]} 10. fxe5 {[%clk 0:02:45]}  dxe5 {[%clk 0:02:42]} 11. Bg5 {[%clk 0:02:45]}  Qb6 {[%clk 0:02:35]} 12. Kh1 {[%clk 0:02:44]}  O-O-O {[%clk 0:02:26]} 13. Na4 {[%clk 0:02:43]}  Qa5 {[%clk 0:02:19]} 14. c3 {[%clk 0:02:43]}  Nb5 {[%clk 0:02:08]} 15. b4 {[%clk 0:02:42]}  Qc7 {[%clk 0:02:00]} 16. Qe2 {[%clk 0:02:42]}  Bg4 {[%clk 0:01:33]} 17. Qe3 {[%clk 0:02:38]}  Qd6 {[%clk 0:01:14]} 18. Bxb5 {[%clk 0:02:10]}  cxb5 {[%clk 0:01:14]} 19. Nc5 {[%clk 0:02:11]}  Kb8 {[%clk 0:01:04]} 20. a4 {[%clk 0:02:09]}  bxa4 {[%clk 0:00:56]} 21. Rxa4 {[%clk 0:02:08]}  b6 {[%clk 0:00:44]} 22. Bxf6 {[%clk 0:02:04]}  gxf6 {[%clk 0:00:43]} 23. Na6+ {[%clk 0:02:01]}  Kb7 {[%clk 0:00:43]} 24. h3 {[%clk 0:02:00]}  Bd7 {[%clk 0:00:34]} 25. Ra3 {[%clk 0:01:59]}  Bb5 {[%clk 0:00:34]} 26. Rfa1 {[%clk 0:01:59]}  Ra8 {[%clk 0:00:25]} 27. Qf2 {[%clk 0:01:48]}  Rhg8 {[%clk 0:00:20]} 28. Qa2 {[%clk 0:01:41]}  Qe6 {[%clk 0:00:15]} 29. Nc5+ {[%clk 0:01:41]}  bxc5 {[%clk 0:00:14]} 30. Rxa7+ {[%clk 0:01:41]}  Rxa7 {[%clk 0:00:14]} 31. Qxa7+ {[%clk 0:01:41]}  Kc6 {[%clk 0:00:11]} 32. Qxc5+ {[%clk 0:01:28]}  Kb7 {[%clk 0:00:11]} 33. Ra7+ {[%clk 0:01:26]}  Kb8 {[%clk 0:00:11]} 34. Qc7# {[%clk 0:01:27]} 1-0


[Site "https://www.chess.com"]

[Event "Titled Tuesday Blitz December 27 Early 2022"]
[White "Petrovic, Aleksa"]
[Black "Savic, Miroslav"]
[WhiteFideId "967629"]
[BlackFideId "14508494"]
[WhiteElo "2332"]
[BlackElo "2167"]
[Result "1-0"]
[Round "04"]
[TimeControl "180+2"]
[Date "2022.12.27"]
[WhiteClock "0:00:12"]
[BlackClock "0:00:02"]

1. d4 {[%clk 0:03:00]}  Nf6 {[%clk 0:02:47]} 2. c4 {[%clk 0:02:59]}  e6 {[%clk 0:02:48]} 3. Nf3 {[%clk 0:02:59]}  Bb4+ {[%clk 0:02:45]} 4. Bd2 {[%clk 0:02:58]}  a5 {[%clk 0:02:42]} 5. g3 {[%clk 0:02:57]}  b6 {[%clk 0:02:38]} 6. Bg2 {[%clk 0:02:57]}  Bb7 {[%clk 0:02:38]} 7. O-O {[%clk 0:02:57]}  Bxd2 {[%clk 0:02:38]} 8. Qxd2 {[%clk 0:02:56]}  O-O {[%clk 0:02:39]} 9. Nc3 {[%clk 0:02:55]}  d6 {[%clk 0:02:36]} 10. Rac1 {[%clk 0:02:46]}  Qe7 {[%clk 0:02:34]} 11. Rfd1 {[%clk 0:02:43]}  Nbd7 {[%clk 0:02:33]} 12. Qg5 {[%clk 0:02:42]}  h6 {[%clk 0:02:30]} 13. Qh4 {[%clk 0:02:42]}  Rfe8 {[%clk 0:02:30]} 14. Nb5 {[%clk 0:02:35]}  Nf8 {[%clk 0:02:20]} 15. Qf4 {[%clk 0:02:27]}  Ng6 {[%clk 0:02:16]} 16. Qd2 {[%clk 0:02:27]}  Ne4 {[%clk 0:02:13]} 17. Qe1 {[%clk 0:02:26]}  f5 {[%clk 0:02:12]} 18. Nd2 {[%clk 0:02:16]}  Rf8 {[%clk 0:01:47]} 19. Nc3 {[%clk 0:02:09]}  Nxc3 {[%clk 0:01:41]} 20. Bxb7 {[%clk 0:01:56]}  Nxd1 {[%clk 0:01:40]} 21. Bxa8 {[%clk 0:01:55]}  Nxf2 {[%clk 0:01:25]} 22. Qxf2 {[%clk 0:01:17]}  Rxa8 {[%clk 0:01:21]} 23. c5 {[%clk 0:01:16]}  bxc5 {[%clk 0:01:14]} 24. dxc5 {[%clk 0:01:14]}  d5 {[%clk 0:01:14]} 25. Nf3 {[%clk 0:01:05]}  Qf6 {[%clk 0:01:08]} 26. Nd4 {[%clk 0:01:01]}  e5 {[%clk 0:00:57]} 27. Nxf5 {[%clk 0:00:56]}  Rf8 {[%clk 0:00:54]} 28. Rf1 {[%clk 0:00:55]}  Kh7 {[%clk 0:00:39]} 29. Ne3 {[%clk 0:00:32]}  Qc6 {[%clk 0:00:35]} 30. Nf5 {[%clk 0:00:25]}  d4 {[%clk 0:00:29]} 31. h4 {[%clk 0:00:18]}  Qxc5 {[%clk 0:00:23]} 32. Qf3 {[%clk 0:00:17]}  e4 {[%clk 0:00:16]} 33. Qxe4 {[%clk 0:00:16]}  Qe5 {[%clk 0:00:16]} 34. Qd3 {[%clk 0:00:15]}  c5 {[%clk 0:00:08]} 35. h5 {[%clk 0:00:14]}  Nf4 {[%clk 0:00:02]} 36. Rxf4 {[%clk 0:00:12]} 1-0


[Site "https://www.chess.com"]

[Event "Titled Tuesday Blitz December 27 Early 2022"]
[White "Piesik, Piotr"]
[Black "Yeritsyan, Hayk"]
[WhiteFideId "1136194"]
[BlackFideId "13307320"]
[WhiteElo "2426"]
[BlackElo "2241"]
[Result "1-0"]
[Round "04"]
[TimeControl "180+2"]
[Date "2022.12.27"]
[WhiteClock "0:00:33"]
[BlackClock "0:00:01"]

1. Nf3 {[%clk 0:03:00]}  Nf6 {[%clk 0:02:59]} 2. g3 {[%clk 0:03:01]}  g6 {[%clk 0:02:57]} 3. Bg2 {[%clk 0:03:01]}  Bg7 {[%clk 0:02:57]} 4. O-O {[%clk 0:03:02]}  O-O {[%clk 0:02:56]} 5. d4 {[%clk 0:03:03]}  d6 {[%clk 0:02:57]} 6. Nbd2 {[%clk 0:03:02]}  c6 {[%clk 0:02:58]} 7. e4 {[%clk 0:03:02]}  e5 {[%clk 0:02:58]} 8. dxe5 {[%clk 0:03:02]}  dxe5 {[%clk 0:02:59]} 9. Qe2 {[%clk 0:03:00]}  Qc7 {[%clk 0:02:58]} 10. a4 {[%clk 0:03:00]}  Nbd7 {[%clk 0:02:53]} 11. a5 {[%clk 0:02:59]}  Re8 {[%clk 0:02:44]} 12. b3 {[%clk 0:02:59]}  Nc5 {[%clk 0:02:31]} 13. Bb2 {[%clk 0:02:58]}  Bg4 {[%clk 0:02:19]} 14. h3 {[%clk 0:02:56]}  Bxf3 {[%clk 0:02:19]} 15. Bxf3 {[%clk 0:02:57]}  Rad8 {[%clk 0:02:18]} 16. Nc4 {[%clk 0:02:55]}  b5 {[%clk 0:02:11]} 17. axb6 {[%clk 0:02:55]}  axb6 {[%clk 0:02:12]} 18. b4 {[%clk 0:02:54]}  Nb7 {[%clk 0:02:02]} 19. Ra7 {[%clk 0:02:50]}  Nd7 {[%clk 0:01:58]} 20. Bg4 {[%clk 0:02:43]}  h5 {[%clk 0:01:54]} 21. Bxd7 {[%clk 0:02:42]}  Rxd7 {[%clk 0:01:54]} 22. Qe3 {[%clk 0:02:33]}  b5 {[%clk 0:01:37]} 23. Na5 {[%clk 0:02:11]}  Qc8 {[%clk 0:01:35]} 24. h4 {[%clk 0:02:01]}  Nxa5 {[%clk 0:01:34]} 25. bxa5 {[%clk 0:01:58]}  Bh6 {[%clk 0:01:14]} 26. Qb6 {[%clk 0:01:52]}  Rd2 {[%clk 0:01:11]} 27. Bc1 {[%clk 0:01:46]}  Qg4 {[%clk 0:00:51]} 28. Bxd2 {[%clk 0:01:44]}  Bxd2 {[%clk 0:00:52]} 29. Qxc6 {[%clk 0:01:41]}  Rc8 {[%clk 0:00:45]} 30. Ra8 {[%clk 0:01:40]}  Rxa8 {[%clk 0:00:44]} 31. Qxa8+ {[%clk 0:01:41]}  Kg7 {[%clk 0:00:44]} 32. Kg2 {[%clk 0:01:40]}  Qe2 {[%clk 0:00:32]} 33. a6 {[%clk 0:01:35]}  Be3 {[%clk 0:00:23]} 34. Qd5 {[%clk 0:01:30]}  Bd4 {[%clk 0:00:22]} 35. a7 {[%clk 0:01:21]}  Bxa7 {[%clk 0:00:20]} 36. Qxe5+ {[%clk 0:01:21]}  Kh7 {[%clk 0:00:21]} 37. Qe7 {[%clk 0:01:18]}  Bd4 {[%clk 0:00:21]} 38. Qxf7+ {[%clk 0:01:18]}  Kh6 {[%clk 0:00:21]} 39. Qf3 {[%clk 0:01:15]}  Qxc2 {[%clk 0:00:21]} 40. Qf4+ {[%clk 0:01:13]}  Kh7 {[%clk 0:00:20]} 41. Qd6 {[%clk 0:01:06]}  Qxe4+ {[%clk 0:00:19]} 42. Kh2 {[%clk 0:01:04]}  Be5 {[%clk 0:00:18]} 43. Qe7+ {[%clk 0:00:53]}  Kh6 {[%clk 0:00:17]} 44. Kg1 {[%clk 0:00:48]}  b4 {[%clk 0:00:17]} 45. Rd1 {[%clk 0:00:40]}  b3 {[%clk 0:00:10]} 46. Rd7 {[%clk 0:00:32]}  Qe1+ {[%clk 0:00:10]} 47. Kg2 {[%clk 0:00:33]}  Qe4+ {[%clk 0:00:10]} 48. Kh2 {[%clk 0:00:33]}  Bxg3+ {[%clk 0:00:08]} 49. Kxg3 {[%clk 0:00:33]}  Qxe7 {[%clk 0:00:01]} 50. Rxe7 {[%clk 0:00:33]}  b2 {[%clk 0:00:01]} 51. Rb7 {[%clk 0:00:33]} 1-0


[Site "https://www.chess.com"]

[Event "Titled Tuesday Blitz December 27 Early 2022"]
[White "Rangel, Daniel"]
[Black "Barbashin, Igor"]
[WhiteFideId "2124475"]
[BlackFideId "4155718"]
[WhiteElo "2207"]
[BlackElo "2169"]
[Result "1/2-1/2"]
[Round "04"]
[TimeControl "180+2"]
[Date "2022.12.27"]
[WhiteClock "0:00:07"]
[BlackClock "0:00:51"]

1. d4 {[%clk 0:03:00]}  Nf6 {[%clk 0:02:59]} 2. c4 {[%clk 0:03:01]}  c5 {[%clk 0:02:59]} 3. d5 {[%clk 0:03:01]}  e6 {[%clk 0:02:59]} 4. Nc3 {[%clk 0:03:01]}  exd5 {[%clk 0:02:59]} 5. cxd5 {[%clk 0:03:01]}  d6 {[%clk 0:02:59]} 6. g3 {[%clk 0:03:01]}  g6 {[%clk 0:02:59]} 7. Bg2 {[%clk 0:03:02]}  Bg7 {[%clk 0:02:59]} 8. Nf3 {[%clk 0:03:02]}  O-O {[%clk 0:02:59]} 9. O-O {[%clk 0:03:03]}  Re8 {[%clk 0:02:59]} 10. Nd2 {[%clk 0:03:02]}  a6 {[%clk 0:02:48]} 11. a4 {[%clk 0:03:01]}  Nbd7 {[%clk 0:02:39]} 12. Nc4 {[%clk 0:03:00]}  Ne5 {[%clk 0:02:37]} 13. Na3 {[%clk 0:03:00]}  Rb8 {[%clk 0:02:34]} 14. h3 {[%clk 0:02:59]}  Qc7 {[%clk 0:02:23]} 15. e4 {[%clk 0:02:55]}  c4 {[%clk 0:02:19]} 16. Kh2 {[%clk 0:02:47]}  Bd7 {[%clk 0:02:17]} 17. f4 {[%clk 0:02:46]}  Nd3 {[%clk 0:02:16]} 18. Nc2 {[%clk 0:02:01]}  b5 {[%clk 0:02:15]} 19. axb5 {[%clk 0:02:02]}  axb5 {[%clk 0:02:14]} 20. e5 {[%clk 0:01:46]}  dxe5 {[%clk 0:02:13]} 21. f5 {[%clk 0:01:35]}  Bxf5 {[%clk 0:02:07]} 22. Rxf5 {[%clk 0:01:34]}  gxf5 {[%clk 0:02:07]} 23. Ne3 {[%clk 0:01:35]}  Qd7 {[%clk 0:02:01]} 24. Qf1 {[%clk 0:01:23]}  f4 {[%clk 0:02:00]} 25. Ned1 {[%clk 0:01:15]}  fxg3+ {[%clk 0:01:56]} 26. Kxg3 {[%clk 0:01:12]}  e4 {[%clk 0:01:56]} 27. Kh2 {[%clk 0:01:07]}  Qd6+ {[%clk 0:01:52]} 28. Kh1 {[%clk 0:01:05]}  Nh5 {[%clk 0:01:51]} 29. Ne2 {[%clk 0:00:36]}  Qxd5 {[%clk 0:01:42]} 30. Ne3 {[%clk 0:00:35]}  Qe6 {[%clk 0:01:25]} 31. Nf5 {[%clk 0:00:34]}  Qg6 {[%clk 0:01:19]} 32. Be3 {[%clk 0:00:22]}  Bxb2 {[%clk 0:01:12]} 33. Ra7 {[%clk 0:00:22]}  Be5 {[%clk 0:01:00]} 34. Nh6+ {[%clk 0:00:21]}  Kh8 {[%clk 0:00:52]} 35. Nxf7+ {[%clk 0:00:20]}  Kg8 {[%clk 0:00:52]} 36. Nh6+ {[%clk 0:00:21]}  Kh8 {[%clk 0:00:51]} 37. Nf7+ {[%clk 0:00:19]}  Kg8 {[%clk 0:00:51]} 38. Nh6+ {[%clk 0:00:09]}  Kh8 {[%clk 0:00:51]} 39. Nf7+ {[%clk 0:00:07]} 1/2-1/2


[Site "https://www.chess.com"]